[Event "Marienbad Open GM 2025"]
[Site "Marianske Lazne"]
[Date "2025.01.19"]
[Round "2.5"]
[White "Harshavardhan G B"]
[Black "Otsuka, Shou"]
[Result "1-0"]
[Annotator "RC"]
[ECO "D34"]
[WhiteElo "2405"]
[BlackElo "2214"]
[PlyCount "115"]
[EventDate "2025.01.18"]
[EventType "tourn"]
[EventCountry "CZE"]
[SourceTitle "playchess.com"]
[Source "ChessBase"]
[SourceQuality "1"]
[TimeControl "40/5400+30:1800+30"]

1. d4 {[%emt 0:00:25]} d5 {[%emt 0:00:06]} 2. c4 {[%emt 0:00:22]} e6 {[%emt 0:00:05]} 3. Nc3 {[%emt 0:00:20]} c5 {[%emt 0:00:51]} 4. cxd5 {[%emt 0:00:14]} exd5 {[%emt 0:00:04]} 5. Nf3 {[%emt 0:00:24]} Nc6 {[%emt 0:00:05]} 6. g3 {[%emt 0:00:20]} Nf6 {[%emt 0:00:10]} 7. Bg2 {[%emt 0:00:08]} Be7 {[%emt 0:00:27]} 8. O-O {[%emt 0:00:08]} O-O {[%emt 0:00:09]} 9. dxc5 {[%emt 0:00:12]} Bxc5 {[%emt 0:00:06]} 10. Bg5 {[%emt 0:00:06]} d4 {[%emt 0:00:22]} 11. Bxf6 {[%emt 0:00:22]} Qxf6 {[%emt 0:00:07]} 12. Nd5 {[%emt 0:00:08]} Qd8 {[%emt 0:01:12]} 13. Nd2 {[%emt 0:00:10]} Re8 {[%emt 0:01:10]} 14. Nb3 {[%emt 0:04:58]} Bb6 {[%emt 0:04:48]} 15. Rc1 {[%emt 0:03:14]} Bg4 {[%emt 0:13:36]} 16. Re1 {[%emt 0:00:46]} Qd6 {[%emt 0:06:28]} 17. h3 {[%emt 0:06:20]} Bf5 {[%emt 0:08:46]} 18. Nd2 {[%emt 0:20:04]} Be6 {[%emt 0:16:06]} 19. Nc4 {[%emt 0:03:26]} Qd8 {[%emt 0:00:15]} 20. Nf4 {[%emt 0:00:16]} Bf5 {[%emt 0:05:06]} 21. Qb3 {[%emt 0:02:20]} Be4 {[%emt 0:02:06]} 22. Bxe4 {[%emt 0:02:14]} Rxe4 {[%emt 0:00:06]} 23. Qf3 {[%emt 0:00:10]} f5 {[%emt 0:04:46]} 24. Nd2 {[%emt 0:07:02]} Re8 {[%emt 0:06:31]} 25. b4 {[%emt 0:00:50]} Qd7 {[%emt 0:01:46]} 26. Nc4 {[%emt 0:01:22]} Re4 {[%emt 0:05:13]} 27. b5 {[%emt 0:01:52]} Ne5 {[%emt 0:00:28]} 28. Qb3 {[%emt 0:02:00]} Nxc4 {[%emt 0:05:21]} 29. Qxc4+ {[%emt 0:19:00]} Qf7 {[%emt 0:00:06]} 30. Qxf7+ {[%emt 0:01:46]} Kxf7 {[%emt 0:00:02]} 31. Kf1 {[%emt 0:00:18]} Rae8 {[%emt 0:00:39]} 32. h4 {[%emt 0:01:58]} g6 {[%emt 0:05:37]} 33. Red1 {[%emt 0:01:54]} h6 {[%emt 0:01:57]} 34. Rc2 {[%emt 0:00:30]} g5 {[%emt 0:00:34]} 35. hxg5 {[%emt 0:00:40]} hxg5 {[%emt 0:00:02]} 36. Nd5 {[%emt 0:03:38]} Ba5 {[%emt 0:08:31]} 37. f3 {[%emt 0:00:48]} R4e5 {[%emt 0:01:38]} 38. Rxd4 {[%emt 0:00:08]} Rd8 {[%emt 0:02:01]} 39. e4 {[%emt 0:01:12]} g4 {[%emt 0:00:19]} 40. Ra4 {[%emt 0:00:30]} Bb6 {[%emt 0:02:10]} 41. Nxb6 {[%emt 0:34:24]} axb6 {[%emt 0:30:19]} 42. exf5 {[%emt 0:00:21]} Rxf5 {[%emt 0:00:00]} 43. Rxg4 {[%emt 0:00:00]} Rxf3+ {[%emt 0:00:00]} 44. Kg2 {[%emt 0:00:00]} Rfd3 {[%emt 0:00:00]} 45. Rc7+ {[%emt 0:00:00]} R8d7 {[%emt 0:00:00]} 46. Rxd7+ {[%emt 0:00:00]} Rxd7 {[%emt 0:00:00]} 47. a4 {[%emt 0:00:00]} Rd3 {[%emt 0:00:00]} 48. Rc4 {[%emt 0:00:00]} Rd7 {[%emt 0:00:00]} 49. Kf3 {[%emt 0:00:00]} Ke6 {[%emt 0:00:00]} 50. g4 {[%emt 0:00:00]} Kd5 {[%emt 0:00:00]} 51. Rf4 {[%emt 0:00:00]} Rg7 {[%emt 0:00:00]} 52. Rf6 {[%emt 0:00:00]} Kc5 {[%emt 0:00:00]} 53. Rf4 {[%emt 0:00:00]} Kd5 {[%emt 0:00:00]} 54. Kg3 {[%emt 0:00:00]} Ke5 {[%emt 0:00:00]} 55. Rf5+ {[%emt 0:00:00]} Ke6 {[%emt 0:00:00]} 56. Rf8 {[%emt 0:00:00]} Kd5 {[%emt 0:00:00]} 57. Kh4 {[%emt 0:00:00]} Kc5 {[%emt 0:00:00]} 58. Rf4 {[%emt 0:00:00]} 1-0